[Event "Titled Tuesday Blitz September 27 Late 2022"]
[White "Demidov, Mikhail"]
[Black "Gunduz, Umut Erdem"]
[WhiteFideId "4197143"]
[BlackFideId "6381383"]
[WhiteElo "2520"]
[BlackElo "2029"]
[Result "0-1"]
[Round "07"]
[TimeControl "180+1"]
[Date "2022.09.27"]
[WhiteClock "0:00:12"]
[BlackClock "0:00:34"]

1. Nf3 {[%clk 0:03:00]}  Nf6 {[%clk 0:02:59]} 2. g3 {[%clk 0:03:00]}  b5 {[%clk 0:02:57]} 3. Bg2 {[%clk 0:02:59]}  Bb7 {[%clk 0:02:57]} 4. O-O {[%clk 0:03:00]}  e6 {[%clk 0:02:57]} 5. d3 {[%clk 0:03:00]}  Be7 {[%clk 0:02:57]} 6. c4 {[%clk 0:03:00]}  a6 {[%clk 0:02:54]} 7. b3 {[%clk 0:02:55]}  O-O {[%clk 0:02:54]} 8. Bb2 {[%clk 0:02:54]}  d6 {[%clk 0:02:54]} 9. Nbd2 {[%clk 0:02:54]}  Nbd7 {[%clk 0:02:54]} 10. Qc2 {[%clk 0:02:53]}  c5 {[%clk 0:02:53]} 11. e4 {[%clk 0:02:52]}  Rc8 {[%clk 0:02:47]} 12. a4 {[%clk 0:02:47]}  b4 {[%clk 0:02:45]} 13. Rae1 {[%clk 0:02:46]}  Ng4 {[%clk 0:02:39]} 14. h3 {[%clk 0:02:44]}  Nge5 {[%clk 0:02:39]} 15. Nh2 {[%clk 0:02:44]}  Bf6 {[%clk 0:02:36]} 16. f4 {[%clk 0:02:41]}  Nc6 {[%clk 0:02:36]} 17. e5 {[%clk 0:02:19]}  dxe5 {[%clk 0:02:32]} 18. fxe5 {[%clk 0:02:18]}  Ndxe5 {[%clk 0:02:28]} 19. Rxe5 {[%clk 0:02:09]}  Nd4 {[%clk 0:02:03]} 20. Bxd4 {[%clk 0:01:27]}  Qxd4+ {[%clk 0:02:03]} 21. Rf2 {[%clk 0:01:27]}  Bxe5 {[%clk 0:01:40]} 22. Bxb7 {[%clk 0:01:24]}  Bxg3 {[%clk 0:01:40]} 23. Ne4 {[%clk 0:01:21]}  Bxh2+ {[%clk 0:01:24]} 24. Kxh2 {[%clk 0:01:17]}  Rb8 {[%clk 0:01:24]} 25. Bxa6 {[%clk 0:01:17]}  f5 {[%clk 0:01:24]} 26. Ng3 {[%clk 0:01:16]}  f4 {[%clk 0:01:09]} 27. Ne4 {[%clk 0:01:13]}  f3 {[%clk 0:01:08]} 28. Qb2 {[%clk 0:00:44]}  Qxd3 {[%clk 0:00:56]} 29. Qe5 {[%clk 0:00:38]}  Rb6 {[%clk 0:00:45]} 30. Bb5 {[%clk 0:00:23]}  Rf5 {[%clk 0:00:42]} 31. Qc7 {[%clk 0:00:14]}  Qxe4 {[%clk 0:00:40]} 32. Qxb6 {[%clk 0:00:12]}  Qe5+ {[%clk 0:00:34]} 33. Kh1 {[%clk 0:00:12]}  Qe1+ {[%clk 0:00:34]} 34. Kh2 {[%clk 0:00:12]}  Qxf2+ {[%clk 0:00:34]} 0-1


[Site "https://www.chess.com"]

[Event "Titled Tuesday Blitz September 27 Late 2022"]
[White "Domingo Nunez, Ruben"]
[Black "Makarian, Rudik"]
[WhiteFideId "22245570"]
[BlackFideId "44105681"]
[WhiteElo "2406"]
[BlackElo "2410"]
[Result "1-0"]
[Round "07"]
[TimeControl "180+1"]
[Date "2022.09.27"]
[WhiteClock "0:01:48"]
[BlackClock "0:02:32"]

1. Nf3 {[%clk 0:03:00]}  Nf6 {[%clk 0:03:00]} 2. b3 {[%clk 0:03:00]}  b5 {[%clk 0:02:59]} 3. d4 {[%clk 0:02:59]}  Bb7 {[%clk 0:02:59]} 4. Nbd2 {[%clk 0:02:59]}  e6 {[%clk 0:02:59]} 5. a4 {[%clk 0:02:59]}  b4 {[%clk 0:02:59]} 6. Nc4 {[%clk 0:03:00]}  Be7 {[%clk 0:02:59]} 7. g3 {[%clk 0:02:58]}  Bxf3 {[%clk 0:02:58]} 8. exf3 {[%clk 0:02:58]}  O-O {[%clk 0:02:58]} 9. Bg2 {[%clk 0:02:54]}  d5 {[%clk 0:02:58]} 10. Ne5 {[%clk 0:02:53]}  c5 {[%clk 0:02:58]} 11. f4 {[%clk 0:02:52]}  Nfd7 {[%clk 0:02:54]} 12. O-O {[%clk 0:02:31]}  Bf6 {[%clk 0:02:54]} 13. Bb2 {[%clk 0:02:28]}  Bxe5 {[%clk 0:02:52]} 14. dxe5 {[%clk 0:02:08]}  Nc6 {[%clk 0:02:51]} 15. f5 {[%clk 0:02:09]}  Ndxe5 {[%clk 0:02:50]} 16. fxe6 {[%clk 0:02:09]}  fxe6 {[%clk 0:02:50]} 17. Qe2 {[%clk 0:02:10]}  Qd6 {[%clk 0:02:37]} 18. Rae1 {[%clk 0:02:10]}  Nf7 {[%clk 0:02:36]} 19. Qxe6 {[%clk 0:02:09]}  Rad8 {[%clk 0:02:36]} 20. Qg4 {[%clk 0:01:49]}  Nh6 {[%clk 0:02:32]} 21. Qxg7# {[%clk 0:01:48]} 1-0


[Site "https://www.chess.com"]

[Event "Titled Tuesday Blitz September 27 Late 2022"]
[White "Dounis, Alexandros"]
[Black "Christiansen, Johan-Sebastian"]
[WhiteFideId "4213238"]
[BlackFideId "1512668"]
[WhiteElo "2204"]
[BlackElo "2513"]
[Result "1-0"]
[Round "07"]
[TimeControl "180+1"]
[Date "2022.09.28"]
[WhiteClock "0:00:08"]
[BlackClock "0:00:04"]

1. Nf3 {[%clk 0:02:58]}  b6 {[%clk 0:02:57]} 2. e4 {[%clk 0:02:57]}  Bb7 {[%clk 0:02:58]} 3. Nc3 {[%clk 0:02:57]}  e6 {[%clk 0:02:59]} 4. a3 {[%clk 0:02:56]}  c5 {[%clk 0:02:58]} 5. d4 {[%clk 0:02:55]}  cxd4 {[%clk 0:02:59]} 6. Nxd4 {[%clk 0:02:56]}  a6 {[%clk 0:03:00]} 7. Bc4 {[%clk 0:02:54]}  d6 {[%clk 0:02:59]} 8. O-O {[%clk 0:02:54]}  Nf6 {[%clk 0:02:59]} 9. Qe2 {[%clk 0:02:54]}  Nbd7 {[%clk 0:02:57]} 10. Ba2 {[%clk 0:02:53]}  Qc7 {[%clk 0:02:53]} 11. Bg5 {[%clk 0:02:50]}  h6 {[%clk 0:02:51]} 12. Bh4 {[%clk 0:02:50]}  Qc5 {[%clk 0:02:49]} 13. Rad1 {[%clk 0:02:45]}  Rc8 {[%clk 0:02:47]} 14. Kh1 {[%clk 0:02:43]}  Qh5 {[%clk 0:02:40]} 15. Qxh5 {[%clk 0:02:25]}  Nxh5 {[%clk 0:02:41]} 16. f4 {[%clk 0:02:21]}  Nxf4 {[%clk 0:02:41]} 17. Rxf4 {[%clk 0:01:52]}  g5 {[%clk 0:02:41]} 18. Rxf7 {[%clk 0:01:44]}  Kxf7 {[%clk 0:02:42]} 19. Bxe6+ {[%clk 0:01:41]}  Ke8 {[%clk 0:02:11]} 20. Bg3 {[%clk 0:01:42]}  Rc5 {[%clk 0:02:11]} 21. Nf5 {[%clk 0:01:39]}  Ne5 {[%clk 0:02:07]} 22. Bf2 {[%clk 0:01:31]}  Rc6 {[%clk 0:01:07]} 23. Bd4 {[%clk 0:01:31]}  b5 {[%clk 0:00:58]} 24. Bxe5 {[%clk 0:01:27]}  dxe5 {[%clk 0:00:54]} 25. Bd7+ {[%clk 0:01:25]}  Kf7 {[%clk 0:00:55]} 26. Bxc6 {[%clk 0:01:21]}  Bxc6 {[%clk 0:00:56]} 27. Rd8 {[%clk 0:01:16]}  h5 {[%clk 0:00:51]} 28. Rc8 {[%clk 0:01:14]}  Bd7 {[%clk 0:00:40]} 29. Rc7 {[%clk 0:01:15]}  Ke8 {[%clk 0:00:37]} 30. Nd5 {[%clk 0:01:07]}  Kd8 {[%clk 0:00:29]} 31. Ra7 {[%clk 0:01:05]}  Be6 {[%clk 0:00:25]} 32. Rxa6 {[%clk 0:00:54]}  Bf7 {[%clk 0:00:21]} 33. Rb6 {[%clk 0:00:50]}  h4 {[%clk 0:00:20]} 34. h3 {[%clk 0:00:48]}  g4 {[%clk 0:00:21]} 35. Rxb5 {[%clk 0:00:45]}  gxh3 {[%clk 0:00:21]} 36. gxh3 {[%clk 0:00:45]}  Bh5 {[%clk 0:00:20]} 37. Kh2 {[%clk 0:00:42]}  Bf3 {[%clk 0:00:20]} 38. Nf6 {[%clk 0:00:39]}  Kc7 {[%clk 0:00:19]} 39. Rxe5 {[%clk 0:00:35]}  Bd6 {[%clk 0:00:15]} 40. Nxd6 {[%clk 0:00:33]}  Kxd6 {[%clk 0:00:16]} 41. Rf5 {[%clk 0:00:33]}  Be2 {[%clk 0:00:16]} 42. Rf2 {[%clk 0:00:27]}  Bb5 {[%clk 0:00:13]} 43. Ng4 {[%clk 0:00:26]}  Rc8 {[%clk 0:00:10]} 44. e5+ {[%clk 0:00:26]}  Ke7 {[%clk 0:00:11]} 45. c3 {[%clk 0:00:25]}  Rd8 {[%clk 0:00:11]} 46. b3 {[%clk 0:00:18]}  Rd1 {[%clk 0:00:11]} 47. Ne3 {[%clk 0:00:16]}  Re1 {[%clk 0:00:09]} 48. Nf5+ {[%clk 0:00:15]}  Kd7 {[%clk 0:00:07]} 49. Nxh4 {[%clk 0:00:16]}  Bc6 {[%clk 0:00:06]} 50. Kg3 {[%clk 0:00:16]}  Re3+ {[%clk 0:00:06]} 51. Nf3 {[%clk 0:00:16]}  Rxc3 {[%clk 0:00:07]} 52. Kf4 {[%clk 0:00:13]}  Rxb3 {[%clk 0:00:07]} 53. h4 {[%clk 0:00:12]}  Rxa3 {[%clk 0:00:07]} 54. h5 {[%clk 0:00:12]}  Ra4+ {[%clk 0:00:05]} 55. Kg5 {[%clk 0:00:12]}  Ra5 {[%clk 0:00:03]} 56. Kf6 {[%clk 0:00:12]}  Ra6 {[%clk 0:00:02]} 57. e6+ {[%clk 0:00:12]}  Ke8 {[%clk 0:00:02]} 58. Ng5 {[%clk 0:00:12]}  Bd5 {[%clk 0:00:01]} 59. h6 {[%clk 0:00:13]}  Bxe6 {[%clk 0:00:01]} 60. Nxe6 {[%clk 0:00:12]}  Ra7 {[%clk 0:00:02]} 61. Kg6 {[%clk 0:00:09]}  Re7 {[%clk 0:00:01]} 62. Ng7+ {[%clk 0:00:09]}  Kd7 {[%clk 0:00:01]} 63. h7 {[%clk 0:00:09]}  Kc6 {[%clk 0:00:02]} 64. h8=Q {[%clk 0:00:08]}  Re3 {[%clk 0:00:03]} 65. Qc8+ {[%clk 0:00:08]}  Kd5 {[%clk 0:00:04]} 66. Rd2+ {[%clk 0:00:08]}  Ke4 {[%clk 0:00:04]} 67. Qg4+ {[%clk 0:00:08]}  Ke5 {[%clk 0:00:04]} 68. Qd4# {[%clk 0:00:08]} 1-0


[Site "https://www.chess.com"]

[Event "Titled Tuesday Blitz September 27 Late 2022"]
[White "Harvey, Marcus R"]
[Black "Popilski, Gil"]
[WhiteFideId "400092"]
[BlackFideId "2809060"]
[WhiteElo "2485"]
[BlackElo "2537"]
[Result "0-1"]
[Round "07"]
[TimeControl "180+1"]
[Date "2022.09.28"]
[WhiteClock "0:00:19"]
[BlackClock "0:00:19"]

1. c4 {[%clk 0:03:00]}  e5 {[%clk 0:02:54]} 2. Nc3 {[%clk 0:02:59]}  Bb4 {[%clk 0:02:53]} 3. Nd5 {[%clk 0:03:00]}  Be7 {[%clk 0:02:52]} 4. d4 {[%clk 0:03:00]}  d6 {[%clk 0:02:51]} 5. e4 {[%clk 0:02:59]}  Nf6 {[%clk 0:02:50]} 6. Nxe7 {[%clk 0:02:55]}  Qxe7 {[%clk 0:02:51]} 7. f3 {[%clk 0:02:51]}  c5 {[%clk 0:02:49]} 8. d5 {[%clk 0:02:50]}  Nh5 {[%clk 0:02:48]} 9. Bd3 {[%clk 0:02:46]}  Qh4+ {[%clk 0:02:42]} 10. Kf1 {[%clk 0:01:32]}  Ng3+ {[%clk 0:02:30]} 11. hxg3 {[%clk 0:01:32]}  Qxh1 {[%clk 0:02:31]} 12. g4 {[%clk 0:01:32]}  h5 {[%clk 0:02:31]} 13. g5 {[%clk 0:01:27]}  h4 {[%clk 0:02:28]} 14. Be3 {[%clk 0:01:07]}  h3 {[%clk 0:02:26]} 15. gxh3 {[%clk 0:01:07]}  Rxh3 {[%clk 0:02:14]} 16. Ke2 {[%clk 0:01:07]}  Rh2+ {[%clk 0:02:04]} 17. Bf2 {[%clk 0:01:07]}  Qg2 {[%clk 0:02:03]} 18. Qf1 {[%clk 0:01:04]}  Qxg5 {[%clk 0:01:57]} 19. Ke1 {[%clk 0:01:04]}  Na6 {[%clk 0:01:56]} 20. a3 {[%clk 0:01:03]}  Bd7 {[%clk 0:01:53]} 21. Rb1 {[%clk 0:01:01]}  b6 {[%clk 0:01:42]} 22. Ne2 {[%clk 0:00:49]}  O-O-O {[%clk 0:01:30]} 23. b4 {[%clk 0:00:46]}  Rdh8 {[%clk 0:01:29]} 24. Ng1 {[%clk 0:00:45]}  Ba4 {[%clk 0:01:26]} 25. b5 {[%clk 0:00:39]}  Nc7 {[%clk 0:01:22]} 26. Qe2 {[%clk 0:00:39]}  Rg2 {[%clk 0:01:18]} 27. Qe3 {[%clk 0:00:39]}  Qxe3+ {[%clk 0:01:10]} 28. Bxe3 {[%clk 0:00:40]}  Rhh2 {[%clk 0:01:07]} 29. Be2 {[%clk 0:00:37]}  Ne8 {[%clk 0:01:01]} 30. Kf1 {[%clk 0:00:35]}  Nf6 {[%clk 0:00:59]} 31. Ke1 {[%clk 0:00:23]}  Nh5 {[%clk 0:00:58]} 32. Bf1 {[%clk 0:00:18]}  Ra2 {[%clk 0:00:56]} 33. Ne2 {[%clk 0:00:18]}  Bc2 {[%clk 0:00:54]} 34. Rc1 {[%clk 0:00:17]}  Rb2 {[%clk 0:00:43]} 35. Bg1 {[%clk 0:00:16]}  Rh1 {[%clk 0:00:42]} 36. Bg2 {[%clk 0:00:16]}  Rxg1+ {[%clk 0:00:37]} 37. Nxg1 {[%clk 0:00:17]}  Nf4 {[%clk 0:00:37]} 38. Bf1 {[%clk 0:00:18]}  Bd3 {[%clk 0:00:37]} 39. Nh3 {[%clk 0:00:16]}  Ne2 {[%clk 0:00:27]} 40. Rd1 {[%clk 0:00:07]}  Bxc4 {[%clk 0:00:26]} 41. Rd2 {[%clk 0:00:07]}  Rb1+ {[%clk 0:00:25]} 42. Kf2 {[%clk 0:00:07]}  Rxf1+ {[%clk 0:00:20]} 43. Kxf1 {[%clk 0:00:07]}  Nf4+ {[%clk 0:00:20]} 44. Kf2 {[%clk 0:00:06]}  Nxh3+ {[%clk 0:00:21]} 45. Ke3 {[%clk 0:00:06]}  Bxb5 {[%clk 0:00:19]} 46. Rh2 {[%clk 0:00:06]}  Bd7 {[%clk 0:00:19]} 47. Rg2 {[%clk 0:00:05]}  g6 {[%clk 0:00:19]} 48. Rg3 {[%clk 0:00:05]}  Nf4 {[%clk 0:00:19]} 49. Rg1 {[%clk 0:00:05]}  Bh3 {[%clk 0:00:19]} 50. Kf2 {[%clk 0:00:04]}  Kb7 {[%clk 0:00:19]} 51. Rh1 {[%clk 0:00:05]}  Ka6 {[%clk 0:00:19]} 52. Kg3 {[%clk 0:00:05]}  Ka5 {[%clk 0:00:19]} 53. Rb1 {[%clk 0:00:05]}  Ka4 {[%clk 0:00:19]} 54. Rc1 {[%clk 0:00:06]}  Ne2+ {[%clk 0:00:18]} 55. Kxh3 {[%clk 0:00:06]}  Nxc1 {[%clk 0:00:19]} 56. Kg4 {[%clk 0:00:07]}  Nd3 {[%clk 0:00:18]} 57. f4 {[%clk 0:00:08]}  Nxf4 {[%clk 0:00:18]} 58. Kg5 {[%clk 0:00:08]}  f5 {[%clk 0:00:18]} 59. Kf6 {[%clk 0:00:09]}  fxe4 {[%clk 0:00:17]} 60. Ke7 {[%clk 0:00:10]}  Nxd5+ {[%clk 0:00:17]} 61. Kxd6 {[%clk 0:00:11]}  Nf4 {[%clk 0:00:17]} 62. Kc6 {[%clk 0:00:12]}  e3 {[%clk 0:00:18]} 63. Kb7 {[%clk 0:00:13]}  e2 {[%clk 0:00:18]} 64. Ka6 {[%clk 0:00:14]}  e1=Q {[%clk 0:00:19]} 65. Kxa7 {[%clk 0:00:14]}  Qa5+ {[%clk 0:00:19]} 66. Kb7 {[%clk 0:00:15]}  c4 {[%clk 0:00:20]} 67. Kc6 {[%clk 0:00:16]}  c3 {[%clk 0:00:20]} 68. Kd7 {[%clk 0:00:17]}  c2 {[%clk 0:00:21]} 69. Ke7 {[%clk 0:00:18]}  c1=Q {[%clk 0:00:21]} 70. Kf7 {[%clk 0:00:18]}  Qc6 {[%clk 0:00:21]} 71. Kg7 {[%clk 0:00:19]}  Nh5+ {[%clk 0:00:20]} 72. Kh6 {[%clk 0:00:19]}  Qd2+ {[%clk 0:00:20]} 73. Kh7 {[%clk 0:00:19]}  Qdd7+ {[%clk 0:00:19]} 74. Kh8 {[%clk 0:00:19]}  Qcc8# {[%clk 0:00:19]} 0-1


[Site "https://www.chess.com"]

[Event "Titled Tuesday Blitz September 27 Late 2022"]
[White "Leitao, Rafael"]
[Black "Xiong, Jeffery"]
[WhiteFideId "2101246"]
[BlackFideId "2047640"]
[WhiteElo "2609"]
[BlackElo "2714"]
[Result "1-0"]
[Round "07"]
[TimeControl "180+1"]
[Date "2022.09.27"]
[WhiteClock "0:00:13"]
[BlackClock "0:00:26"]

1. c4 {[%clk 0:02:59]}  e6 {[%clk 0:02:57]} 2. g3 {[%clk 0:02:56]}  d5 {[%clk 0:02:54]} 3. Bg2 {[%clk 0:02:57]}  dxc4 {[%clk 0:02:53]} 4. Qa4+ {[%clk 0:02:56]}  Nd7 {[%clk 0:02:53]} 5. Qxc4 {[%clk 0:02:56]}  Rb8 {[%clk 0:02:53]} 6. Qc2 {[%clk 0:02:49]}  Ngf6 {[%clk 0:02:51]} 7. Nf3 {[%clk 0:02:47]}  c5 {[%clk 0:02:50]} 8. O-O {[%clk 0:02:46]}  b5 {[%clk 0:02:48]} 9. d4 {[%clk 0:02:46]}  Bb7 {[%clk 0:02:48]} 10. a4 {[%clk 0:02:37]}  b4 {[%clk 0:02:49]} 11. Rd1 {[%clk 0:02:31]}  Rc8 {[%clk 0:02:48]} 12. Bg5 {[%clk 0:01:38]}  cxd4 {[%clk 0:02:40]} 13. Qd3 {[%clk 0:01:34]}  e5 {[%clk 0:02:39]} 14. Bxf6 {[%clk 0:01:26]}  Qxf6 {[%clk 0:02:37]} 15. Nbd2 {[%clk 0:01:20]}  Be7 {[%clk 0:01:35]} 16. Ne4 {[%clk 0:01:13]}  Qg6 {[%clk 0:01:24]} 17. Nxe5 {[%clk 0:01:02]}  Nxe5 {[%clk 0:00:50]} 18. Qb5+ {[%clk 0:01:02]}  Bc6 {[%clk 0:00:46]} 19. Qxe5 {[%clk 0:01:00]}  O-O {[%clk 0:00:47]} 20. Qxe7 {[%clk 0:00:57]}  Rfe8 {[%clk 0:00:48]} 21. Qxb4 {[%clk 0:00:35]}  Bxe4 {[%clk 0:00:48]} 22. Qxd4 {[%clk 0:00:32]}  Bxg2 {[%clk 0:00:48]} 23. Kxg2 {[%clk 0:00:32]}  Rxe2 {[%clk 0:00:49]} 24. Rac1 {[%clk 0:00:29]}  Rf8 {[%clk 0:00:43]} 25. Re1 {[%clk 0:00:24]}  Rc2 {[%clk 0:00:34]} 26. Rxc2 {[%clk 0:00:21]}  Qxc2 {[%clk 0:00:34]} 27. Qxa7 {[%clk 0:00:19]}  Qxb2 {[%clk 0:00:35]} 28. a5 {[%clk 0:00:19]}  Qb4 {[%clk 0:00:35]} 29. Re3 {[%clk 0:00:17]}  h6 {[%clk 0:00:33]} 30. Qb6 {[%clk 0:00:17]}  Qc4 {[%clk 0:00:30]} 31. a6 {[%clk 0:00:16]}  Qd5+ {[%clk 0:00:30]} 32. Rf3 {[%clk 0:00:14]}  g5 {[%clk 0:00:26]} 33. Qb7 {[%clk 0:00:13]} 1-0


[Site "https://www.chess.com"]

[Event "Titled Tuesday Blitz September 27 Late 2022"]
[White "Lewtak, Damian"]
[Black "Saraci, Nderim"]
[WhiteFideId "1141724"]
[BlackFideId "6351921"]
[WhiteElo "2329"]
[BlackElo "2553"]
[Result "1-0"]
[Round "07"]
[TimeControl "180+1"]
[Date "2022.09.27"]
[WhiteClock "0:00:12"]
[BlackClock "0:00:03"]

1. e4 {[%clk 0:03:00]}  c5 {[%clk 0:02:58]} 2. Nf3 {[%clk 0:03:00]}  Nc6 {[%clk 0:02:58]} 3. Bb5 {[%clk 0:03:00]}  g6 {[%clk 0:02:57]} 4. O-O {[%clk 0:02:56]}  Bg7 {[%clk 0:02:58]} 5. Re1 {[%clk 0:02:56]}  Nf6 {[%clk 0:02:55]} 6. e5 {[%clk 0:02:51]}  Nd5 {[%clk 0:02:55]} 7. Bxc6 {[%clk 0:02:43]}  dxc6 {[%clk 0:02:53]} 8. h3 {[%clk 0:02:44]}  O-O {[%clk 0:02:52]} 9. d3 {[%clk 0:02:43]}  Nb6 {[%clk 0:02:51]} 10. Nbd2 {[%clk 0:02:39]}  Be6 {[%clk 0:02:50]} 11. b3 {[%clk 0:02:36]}  a5 {[%clk 0:02:47]} 12. a4 {[%clk 0:02:32]}  Nd7 {[%clk 0:02:44]} 13. Bb2 {[%clk 0:02:28]}  Qc7 {[%clk 0:02:44]} 14. Ng5 {[%clk 0:02:18]}  Bf5 {[%clk 0:00:56]} 15. Qe2 {[%clk 0:02:00]}  h6 {[%clk 0:00:43]} 16. Ngf3 {[%clk 0:01:35]}  g5 {[%clk 0:00:42]} 17. Nh2 {[%clk 0:01:28]}  e6 {[%clk 0:00:40]} 18. Nhf1 {[%clk 0:01:28]}  b5 {[%clk 0:00:40]} 19. Ng3 {[%clk 0:01:25]}  Bg6 {[%clk 0:00:40]} 20. Nh5 {[%clk 0:01:23]}  Bxh5 {[%clk 0:00:40]} 21. Qxh5 {[%clk 0:01:22]}  Nxe5 {[%clk 0:00:37]} 22. Rab1 {[%clk 0:01:09]}  Ng6 {[%clk 0:00:36]} 23. Ne4 {[%clk 0:00:57]}  Bxb2 {[%clk 0:00:36]} 24. Rxb2 {[%clk 0:00:56]}  Kg7 {[%clk 0:00:36]} 25. Nxc5 {[%clk 0:00:52]}  Qd6 {[%clk 0:00:36]} 26. Ne4 {[%clk 0:00:50]}  Qd4 {[%clk 0:00:37]} 27. Ra2 {[%clk 0:00:41]}  b4 {[%clk 0:00:36]} 28. Qf3 {[%clk 0:00:38]}  Rae8 {[%clk 0:00:33]} 29. Raa1 {[%clk 0:00:38]}  c5 {[%clk 0:00:33]} 30. Nd2 {[%clk 0:00:36]}  f5 {[%clk 0:00:31]} 31. Nc4 {[%clk 0:00:36]}  Kf6 {[%clk 0:00:25]} 32. Nxa5 {[%clk 0:00:32]}  h5 {[%clk 0:00:23]} 33. Nc4 {[%clk 0:00:32]}  g4 {[%clk 0:00:23]} 34. Qe3 {[%clk 0:00:31]}  Qd5 {[%clk 0:00:23]} 35. a5 {[%clk 0:00:28]}  Rh8 {[%clk 0:00:22]} 36. a6 {[%clk 0:00:25]}  gxh3 {[%clk 0:00:22]} 37. Qxh3 {[%clk 0:00:24]}  Reg8 {[%clk 0:00:22]} 38. a7 {[%clk 0:00:24]}  Nf4 {[%clk 0:00:15]} 39. Qh4+ {[%clk 0:00:24]}  Rg5 {[%clk 0:00:14]} 40. Ne3 {[%clk 0:00:21]}  Qa8 {[%clk 0:00:11]} 41. Qxf4 {[%clk 0:00:20]}  h4 {[%clk 0:00:12]} 42. Kh2 {[%clk 0:00:14]}  Rhg8 {[%clk 0:00:09]} 43. Rg1 {[%clk 0:00:14]}  Kf7 {[%clk 0:00:09]} 44. f3 {[%clk 0:00:12]}  Rg3 {[%clk 0:00:05]} 45. Nc4 {[%clk 0:00:11]}  h3 {[%clk 0:00:04]} 46. Qxg3 {[%clk 0:00:11]}  Rxg3 {[%clk 0:00:04]} 47. Kxg3 {[%clk 0:00:12]}  Qg8+ {[%clk 0:00:03]} 48. Kf2 {[%clk 0:00:12]} 1-0


[Site "https://www.chess.com"]